bitfinex/quotes_BTCUSD_20220207
["timestamp","ask_amount","ask_price","bid_price","bid_amount"]
[1644275239933,0.00145475,44211.0,44209.0,0.010538]
[1644275240736,0.16985647,44220.0,44209.0,0.010538]
[1644275240934,0.323551,44219.0,44208.0,0.05069379]
[1644275241135,0.21985647,44220.0,44209.0,0.35]
[1644275241338,0.18366411,44220.0,44203.0,0.51310746]
[1644275241538,0.23366411,44220.0,44212.0,0.00069373]
[1644275241737,0.323561,44217.0,44212.0,0.00069373]
[1644275242142,0.373561,44217.0,44212.0,0.00069373]
[1644275242337,0.056562,44215.0,44212.0,0.00069373]
[1644275242538,0.323561,44214.0,44206.0,0.05]
[1644275242739,0.05,44214.0,44206.0,0.05]
[1644275242937,0.056562,44215.0,44206.0,0.05]
[1644275244884,0.056562,44215.0,44203.0,0.01825529]
[1644275245086,0.106562,44215.0,44203.0,0.01825529]
[1644275245284,0.056568,44212.0,44208.0,0.00070005]
[1644275245685,0.323561,44211.0,44208.0,0.00070005]
[1644275245884,0.05,44210.0,44208.0,0.00070005]
[1644275246284,0.05,44210.0,44203.0,0.01825529]
[1644275246485,0.056569,44212.0,44207.0,0.00070007]
[1644275246685,0.056569,44209.0,44207.0,0.00070007]
[1644275246887,0.323561,44208.0,44207.0,0.00070007]
[1644275247085,0.373561,44208.0,44207.0,0.00070007]
[1644275247432,0.373561,44208.0,44202.0,0.03659022]
[1644275247631,0.05,44208.0,44205.0,0.00069968]
[1644275247832,0.163138,44210.0,44205.0,0.00069968]
[1644275248032,0.380128,44209.0,44205.0,0.00069968]
[1644275248632,0.323561,44209.0,44203.0,0.05]
[1644275248833,0.05,44210.0,44205.0,0.00069968]
[1644275249234,0.18222515,44214.0,44205.0,0.00069968]
[1644275249433,0.323561,44213.0,44205.0,0.00069968]
[1644275249733,0.05,44212.0,44205.0,0.00069968]
[1644275249936,0.05,44212.0,44203.0,0.05]
[1644275249937,0.380123,44211.0,44203.0,0.05]
[1644275250135,0.00143587,44210.0,44207.0,0.00069966]
[1644275250333,0.323561,44209.0,44207.0,0.00069966]
[1644275250734,0.32362728,44209.0,44207.0,0.00069966]
[1644275251195,0.32362728,44209.0,44206.0,0.00069973]
[1644275251196,0.10006628,44209.0,44206.0,0.00069973]
[1644275251390,0.63206733,44208.0,44206.0,0.00069973]
[1644275251589,0.323561,44208.0,44206.0,0.00069973]
[1644275251790,0.323561,44207.0,44206.0,0.00069973]
[1644275252188,0.436709,44207.0,44196.0,0.01919275]
[1644275252390,0.213148,44207.0,44204.0,0.00069975]
[1644275252605,0.14930836,44205.0,44204.0,0.00069975]
[1644275252791,0.423561,44205.0,44204.0,0.00069975]
[1644275253188,0.523561,44205.0,44204.0,0.00069975]
[1644275253490,0.05,44202.0,44197.0,0.01971918]
[1644275253690,0.373561,44201.0,44197.0,0.01971918]
[1644275253888,0.423561,44201.0,44197.0,0.01971918]
[1644275254090,0.323561,44199.0,44197.0,0.01971918]
[1644275254292,0.05,44198.0,44197.0,0.01971918]
[1644275254493,0.673561,44198.0,44188.0,0.02068242]
[1644275254693,0.380155,44196.0,44188.0,0.02068242]
[1644275254930,0.05,44192.0,44188.0,0.02068242]
[1644275255133,0.323561,44191.0,44188.0,0.02068242]
[1644275255331,0.19930836,44189.0,44188.0,0.02068242]
[1644275255531,0.52286936,44189.0,44188.0,0.02068242]
[1644275255731,0.57286936,44189.0,44188.0,0.02068242]
[1644275255935,0.423561,44189.0,44188.0,0.02068242]
[1644275256531,0.423561,44189.0,44186.0,0.00052164]
[1644275256732,0.323561,44188.0,44186.0,0.00052164]
[1644275257133,0.323561,44188.0,44180.0,0.00022498]
[1644275257330,0.373561,44188.0,44179.0,0.02101539]
[1644275257530,0.056604,44185.0,44179.0,0.02101539]
[1644275257736,0.64175887,44184.0,44179.0,0.02101539]
[1644275258132,0.05,44183.0,44179.0,0.02101539]
[1644275258331,0.323561,44182.0,44179.0,0.02101539]
[1644275258532,0.380163,44182.0,44177.0,0.00022498]
[1644275258779,0.106602,44182.0,44176.0,0.0293638]
[1644275258977,0.106602,44182.0,44177.0,0.00022498]
[1644275259178,0.323561,44181.0,44176.0,0.0293638]
[1644275259377,0.59745647,44181.0,44176.0,0.0293638]
[1644275260576,0.59745647,44181.0,44171.0,0.00022498]
[1644275260776,0.27389547,44181.0,44175.0,0.05]
[1644275260977,0.27389547,44181.0,44176.0,0.00072997]
[1644275261175,0.27389547,44181.0,44176.0,0.00095495]
[1644275261780,0.106602,44182.0,44176.0,0.00095495]
[1644275261978,0.05,44182.0,44176.0,0.00022498]
[1644275262180,0.05,44182.0,44178.0,0.05]
[1644275262431,0.02130922,44186.0,44181.0,0.05]
[1644275262632,0.02130922,44186.0,44176.0,0.00072997]
[1644275262633,0.1156,44191.0,44185.0,0.05]
[1644275263040,0.3664,44193.0,44185.0,0.05]
[1644275263429,0.3,44196.0,44185.0,0.05]
[1644275263634,0.3,44196.0,44185.0,0.05022498]
[1644275264531,0.3,44196.0,44185.0,0.05]
[1644275264731,0.3,44196.0,44185.0,0.05022498]
[1644275265131,0.056591,44192.0,44185.0,0.05022498]
[1644275265337,0.27710267,44191.0,44185.0,0.05022498]
[1644275265532,0.32710267,44191.0,44185.0,0.05022498]
[1644275265733,0.32710267,44191.0,44185.0,0.05]
[1644275265935,0.27710267,44191.0,44185.0,0.05]
[1644275266185,0.323561,44195.0,44185.0,0.05022989]
[1644275266380,0.380148,44195.0,44185.0,0.05022989]
[1644275266782,0.39970019,44195.0,44185.0,0.05022989]
[1644275266984,0.39970019,44195.0,44188.0,0.00072983]
[1644275267181,0.05,44194.0,44188.0,0.00072983]
[1644275267383,0.63858811,44193.0,44188.0,0.00072983]
[1644275267985,0.63858811,44193.0,44186.0,0.00022989]
[1644275267986,0.05659,44192.0,44186.0,0.00022989]
[1644275268183,0.323561,44191.0,44188.0,0.00072982]
[1644275268383,0.28066583,44190.0,44188.0,0.00072982]
[1644275268583,0.323561,44189.0,44188.0,0.00072982]
[1644275268785,0.323561,44189.0,44188.0,0.05072982]
[1644275269184,0.323561,44189.0,44188.0,0.05]
[1644275269583,0.323561,44189.0,44187.0,0.00022989]
[1644275269783,0.10659,44191.0,44186.0,0.00072985]
[1644275270024,0.05659,44191.0,44186.0,0.00095974]
[1644275270425,6.905e-05,44190.0,44186.0,0.00022989]
[1644275270630,0.27306905,44190.0,44186.0,0.00072985]
[1644275270827,0.05006905,44190.0,44186.0,0.00095974]
[1644275271227,0.323561,44192.0,44186.0,0.00095974]
[1644275271428,0.28814482,44191.0,44186.0,0.00095974]
[1644275271627,0.323561,44195.0,44186.0,0.00022989]
[1644275271833,0.323561,44192.0,44187.0,0.00072984]
[1644275272028,0.323561,44190.0,44187.0,0.00072984]
[1644275272829,0.056589,44193.0,44186.0,0.00022989]
[1644275273032,0.056592,44190.0,44186.0,0.00067985]
[1644275273238,0.64929509,44189.0,44186.0,0.00090974]
[1644275273432,0.323561,44187.0,44186.0,0.00067985]
[1644275273880,0.323561,44187.0,44179.0,0.00022989]
[1644275274080,0.323561,44187.0,44177.0,0.02102223]
[1644275274081,0.05,44186.0,44184.0,0.00067987]
[1644275274279,0.380164,44185.0,44184.0,0.00067987]
[1644275275179,0.380164,44185.0,44178.0,0.00022989]
[1644275275382,0.056603,44185.0,44182.0,0.00067989]
[1644275275785,0.106603,44185.0,44182.0,0.00067989]
[1644275276381,0.106603,44185.0,44179.0,0.00022989]
[1644275276580,0.106603,44185.0,44181.0,0.0006799]
[1644275277631,0.106603,44185.0,44180.0,0.00022989]
[1644275277931,0.106603,44185.0,44181.0,0.00068328]
[1644275278531,0.27841221,44184.0,44181.0,0.00068328]
[1644275278732,0.156603,44185.0,44180.0,0.00022989]
[1644275278934,0.156603,44185.0,44181.0,0.00068328]
[1644275279134,0.05,44185.0,44181.0,0.00068328]
[1644275279333,0.056595,44187.0,44181.0,0.00068328]
[1644275279736,6.4e-05,44189.0,44182.0,0.05]
[1644275279935,6.4e-05,44189.0,44182.0,0.045]
[1644275280134,6.4e-05,44189.0,44183.0,0.00068303]
[1644275280334,0.10269939,44192.0,44184.0,0.2]
[1644275280535,0.05,44192.0,44183.0,0.00091292]
[1644275280741,0.00160484,44184.0,44183.0,0.00091292]
[1644275280941,0.00160484,44184.0,44183.0,0.00068303]
[1644275281203,0.00160484,44184.0,44182.0,0.06649786]
[1644275281897,0.0015937,44185.0,44183.0,0.2]
[1644275282697,0.00129229,44185.0,44183.0,0.2]
[1644275284302,0.00129229,44185.0,44182.0,0.04568305]
[1644275284703,0.00129229,44185.0,44182.0,0.04591294]
[1644275284932,0.00129229,44185.0,44182.0,0.04522989]
[1644275285332,7.663e-05,44184.0,44182.0,0.04522989]
[1644275285534,0.00160343,44183.0,44182.0,0.045]
[1644275285933,0.00160343,44183.0,44182.0,0.368561]
[1644275287338,0.00160343,44183.0,44182.0,0.66226714]
[1644275287540,0.00160343,44183.0,44182.0,0.76226714]
[1644275287739,0.00160343,44183.0,44182.0,0.468561]
[1644275287939,7.663e-05,44184.0,44183.0,0.4507741]
[1644275288140,7.663e-05,44184.0,44183.0,0.4616061]
[1644275288342,7.663e-05,44184.0,44183.0,0.8616061]
[1644275288795,2.734e-05,44185.0,44184.0,0.323545]
[1644275289193,2.734e-05,44185.0,44184.0,0.47377489]
[1644275289591,2.734e-05,44185.0,44184.0,0.77577837]
[1644275290693,0.05,44206.0,44191.0,0.056571]
[1644275290993,0.323561,44205.0,44197.0,0.045]
[1644275291398,0.323561,44205.0,44194.0,0.045]
[1644275291701,0.00472767,44202.0,44193.0,0.04527233]
[1644275292294,0.1,44205.0,44195.0,0.00068159]
[1644275292547,0.323561,44202.0,44195.0,0.00068159]
[1644275292747,0.423561,44202.0,44195.0,0.00068159]
[1644275293150,0.056578,44201.0,44195.0,0.00068159]
[1644275293347,0.323561,44200.0,44193.0,0.01989187]
[1644275293547,0.373561,44200.0,44196.0,0.00068158]
[1644275293746,0.32828867,44197.0,44196.0,0.00068158]
[1644275294147,0.67195819,44197.0,44196.0,0.00068158]
[1644275294345,0.72195819,44197.0,44196.0,0.00068158]
[1644275294546,0.056586,44196.0,44193.0,0.01989187]
[1644275294846,0.323561,44195.0,44194.0,0.0006816]
[1644275295047,0.6156624,44195.0,44194.0,0.0006816]
[1644275295648,0.6156624,44195.0,44192.0,0.02164375]
[1644275295848,0.056587,44193.0,44192.0,0.02232643]
[1644275296785,0.056587,44193.0,44189.0,0.00022989]
[1644275296981,0.056587,44193.0,44190.0,0.0006827]
[1644275297981,0.056587,44193.0,44189.0,0.00022989]
[1644275298183,0.056587,44193.0,44189.0,0.00068271]
[1644275298384,0.056587,44193.0,44189.0,0.0009126]
[1644275298783,0.05,44194.0,44189.0,0.0009126]
[1644275299283,0.15631067,44196.0,44189.0,0.00022989]
[1644275299483,0.106583,44196.0,44189.0,0.00068264]
[1644275299682,0.106583,44196.0,44189.0,0.00091253]
[1644275300353,8.797e-05,44193.0,44189.0,0.00091253]
[1644275300554,8.797e-05,44193.0,44192.0,0.00277744]
[1644275301155,0.19399572,44198.0,44197.0,0.02507974]
[1644275301354,0.51755672,44198.0,44197.0,0.02507974]
[1644275301560,0.83222293,44198.0,44197.0,0.02507974]
[1644275302254,0.51755672,44198.0,44197.0,0.02507974]
[1644275303157,0.56755672,44198.0,44197.0,0.02507974]
[1644275304781,0.373561,44198.0,44197.0,0.02507974]
[1644275305785,0.373561,44198.0,44197.0,0.02781669]
[1644275310735,0.62688436,44198.0,44197.0,0.02507974]
[1644275311786,1.14956126,44198.0,44197.0,0.02507974]
[1644275311991,0.85929747,44198.0,44197.0,0.01634974]
[1644275312186,1.3049069,44198.0,44197.0,0.01634974]
[1644275312384,1.01464311,44198.0,44197.0,0.01634974]
[1644275312885,0.85929747,44198.0,44197.0,0.01634974]
[1644275313085,1.01464311,44198.0,44197.0,0.01634974]
[1644275313484,0.68817991,44198.0,44197.0,0.01634974]
[1644275313888,0.99774948,44198.0,44197.0,0.01634974]
[1644275314590,0.68817991,44198.0,44197.0,0.01634974]
[1644275317736,0.97926222,44198.0,44197.0,0.01634974]
[1644275317938,0.68817991,44198.0,44197.0,0.01634974]
[1644275320490,0.9317121,44198.0,44197.0,0.01634974]
[1644275320691,0.77636646,44198.0,44197.0,0.01634974]
[1644275320894,0.9317121,44198.0,44197.0,0.01634974]
[1644275321591,0.68915976,44198.0,44197.0,0.01634974]
[1644275321791,0.58915976,44198.0,44197.0,0.01634974]
[1644275323135,0.8317197,44198.0,44197.0,0.01634974]
[1644275323736,0.58915976,44198.0,44197.0,0.01634974]
[1644275325136,0.58817991,44198.0,44197.0,0.01634974]
[1644275327387,0.83074414,44198.0,44197.0,0.01634974]
[1644275329686,0.58817991,44198.0,44197.0,0.01634974]
[1644275332431,0.68817991,44198.0,44197.0,0.01634974]
[1644275332636,0.58817991,44198.0,44197.0,0.01627696]
[1644275333691,0.43283427,44198.0,44197.0,0.01627696]
[1644275337285,0.72391135,44198.0,44197.0,0.01627696]
[1644275338041,0.58817991,44198.0,44197.0,0.01627696]
[1644275338237,0.87925699,44198.0,44197.0,0.01627696]
[1644275340439,0.58817991,44198.0,44197.0,0.01627696]
[1644275341980,0.68817991,44198.0,44197.0,0.01627696]
[1644275342381,1.02776983,44198.0,44197.0,0.01627696]
[1644275342582,0.45,44197.0,44196.0,0.00392287]
[1644275342781,0.95457146,44197.0,44196.0,0.00392287]
[1644275342981,1.1099171,44197.0,44196.0,0.00392287]
[1644275344181,0.056608,44196.0,44194.0,0.00047544]
[1644275344381,0.33971557,44195.0,44194.0,0.00047544]
[1644275344584,0.50453526,44195.0,44194.0,0.00047544]
[1644275344784,0.65453526,44195.0,44190.0,0.02160609]
[1644275345043,0.05,44193.0,44192.0,0.00047547]
[1644275345242,0.600005,44193.0,44184.0,0.00022989]
[1644275345444,0.056614,44190.0,44183.0,0.00100399]
[1644275345644,0.24268693,44184.0,44183.0,0.0007741]
[1644275345848,0.373561,44184.0,44183.0,0.0007741]
[1644275346343,0.71620313,44184.0,44183.0,0.0007741]
[1644275346542,0.430176,44184.0,44183.0,0.0007741]
[1644275347243,0.73621865,44184.0,44183.0,0.0007741]
[1644275347442,0.83621865,44184.0,44183.0,0.0007741]
[1644275348448,0.73621865,44184.0,44183.0,0.0007741]
[1644275348691,1.13425627,44184.0,44183.0,0.0007741]
[1644275348882,0.99161414,44184.0,44183.0,0.0007741]
[1644275349681,0.68557149,44184.0,44183.0,0.0007741]
[1644275349889,0.98557149,44184.0,44183.0,0.0007741]
[1644275350084,0.98557149,44184.0,44181.0,0.00072892]
[1644275350085,0.14951543,44182.0,44181.0,0.00072892]
[1644275350284,1.382375,44182.0,44181.0,0.00072892]
[1644275350487,1.04277036,44182.0,44175.0,0.00023293]
[1644275350684,0.24257579,44176.0,44174.0,0.02120874]
[1644275350885,0.323561,44175.0,44174.0,0.02120874]
[1644275351090,0.3,44174.0,44172.0,0.01869302]
[1644275351283,0.380188,44173.0,44172.0,0.01869302]
[1644275351682,0.480188,44173.0,44172.0,0.01869302]
[1644275351883,0.323561,44171.0,44163.0,0.05]
[1644275352085,0.60998031,44171.0,44163.0,0.05]
[1644275352287,0.4,44170.0,44158.0,0.6118]
[1644275352543,0.05663203,44167.0,44158.0,0.5618]
[1644275352742,0.39752217,44166.0,44153.0,0.05]
[1644275352942,0.056633,44165.0,44153.0,0.05]
[1644275353144,0.056633,44165.0,44152.0,0.02937978]
[1644275353145,0.113268,44163.0,44157.0,0.05]
[1644275353542,0.056636,44162.0,44157.0,0.05052053]
[1644275353943,0.11327,44162.0,44157.0,0.00052053]
[1644275354142,0.16327,44162.0,44157.0,0.00052053]
[1644275354344,0.323561,44161.0,44157.0,0.00052053]
[1644275354542,0.323561,44161.0,44154.0,0.05]
[1644275354743,0.38261316,44162.0,44157.0,0.00072887]
[1644275354944,0.323561,44161.0,44157.0,0.00072887]
[1644275355343,0.056634,44160.0,44157.0,0.00072887]
[1644275355743,0.056634,44160.0,44154.0,0.05]
[1644275355947,0.28654913,44159.0,44156.0,0.00072888]
[1644275356192,0.113281,44158.0,44156.0,0.00072888]
[1644275356390,0.05,44158.0,44156.0,0.00072888]
[1644275357088,0.05,44158.0,44150.0,0.05]
[1644275357287,0.05,44158.0,44155.0,0.0007289]
[1644275357886,0.323561,44157.0,44155.0,0.0007289]
[1644275358287,0.373561,44157.0,44153.0,0.05]
[1644275358489,0.056637,44156.0,44154.0,0.00072891]
[1644275359094,0.323561,44155.0,44154.0,0.00072891]
[1644275359289,0.373561,44155.0,44154.0,0.00072891]
[1644275359487,0.163302,44154.0,44150.0,0.05]
[1644275359691,0.323561,44153.0,44152.0,0.00072893]
[1644275359961,0.373561,44153.0,44152.0,0.00072893]
[1644275360563,0.430211,44153.0,44150.0,0.05]
[1644275360764,0.05,44151.0,44150.0,0.05072895]
[1644275360964,0.373561,44151.0,44150.0,0.05072895]
[1644275361165,0.2453228,44153.0,44150.0,0.05072895]
[1644275361366,0.373672,44151.0,44150.0,0.05072895]
[1644275361567,0.323672,44151.0,44150.0,0.05072895]
[1644275361769,0.323672,44151.0,44150.0,0.05]
[1644275362767,0.32355855,44151.0,44150.0,0.05]
[1644275363370,0.37355855,44151.0,44150.0,0.05]
[1644275365982,0.37620336,44151.0,44150.0,0.05]
[1644275369038,0.37080121,44151.0,44150.0,0.05]
[1644275370652,0.66303253,44151.0,44149.0,0.00023295]
[1644275370839,0.10389366,44151.0,44150.0,0.05]
[1644275371039,0.72707025,44151.0,44150.0,0.05]
[1644275372391,0.78372625,44151.0,44150.0,0.05]
[1644275372592,0.78372625,44151.0,44142.0,0.00023295]
[1644275372593,0.78372625,44151.0,44144.0,0.05]
[1644275372793,0.78372625,44151.0,44141.0,0.01917899]
[1644275372794,0.056657,44148.0,44141.0,0.01917899]
[1644275372997,0.28332155,44147.0,44142.0,0.00023295]
[1644275373291,0.05,44146.0,44141.0,0.02164403]
[1644275373691,0.436993,44145.0,44141.0,0.02164403]
[1644275373893,0.323673,44143.0,44141.0,0.02164403]
[1644275374091,0.056662,44142.0,44141.0,0.02213868]
[1644275374293,0.380335,44142.0,44141.0,0.02213868]
[1644275374698,0.430335,44142.0,44141.0,0.02213868]
[1644275375140,0.323673,44140.0,44137.0,0.05]
[1644275375337,0.323673,44140.0,44139.0,0.00072762]
[1644275375338,0.373673,44140.0,44139.0,0.00072762]
[1644275376237,0.05666,44139.0,44138.0,0.00023295]
[1644275376440,0.380333,44139.0,44137.0,0.05072765]
[1644275376642,0.59879328,44138.0,44137.0,0.00072765]
[1644275377245,0.64879328,44138.0,44137.0,0.00072765]
[1644275377443,0.64879328,44138.0,44132.0,0.00023295]
[1644275377444,0.113353,44137.0,44132.0,0.00023295]
[1644275377641,0.323673,44136.0,44135.0,0.00072767]
[1644275377843,0.7650951,44136.0,44135.0,0.00072767]
[1644275378700,0.056679,44135.0,44130.0,0.00023295]
[1644275378896,0.323673,44134.0,44133.0,0.00072769]
[1644275379095,0.65554732,44134.0,44133.0,0.00072769]
[1644275379899,0.05667661,44133.0,44129.0,0.00023295]
[1644275380095,0.437028,44132.0,44131.0,0.00072772]
[1644275380295,0.76933045,44132.0,44131.0,0.00072772]
[1644275380795,0.81933045,44132.0,44131.0,0.00072772]
[1644275380995,0.81933045,44132.0,44128.0,0.00023295]
[1644275381198,0.380349,44130.0,44129.0,0.00072774]
[1644275382199,0.380349,44130.0,44128.0,0.00023295]
[1644275382436,0.380349,44130.0,44129.0,0.05]
[1644275382633,0.380349,44130.0,44127.0,0.10068955]
[1644275382834,0.380349,44130.0,44129.0,0.05]
[1644275383035,0.380349,44130.0,44127.0,0.10068955]
[1644275383435,0.380349,44130.0,44127.0,0.1]
[1644275383635,0.380349,44130.0,44129.0,0.05]
[1644275384637,0.380349,44130.0,44128.0,0.00023295]
[1644275384943,0.38291773,44130.0,44127.0,0.1009225]
[1644275385139,0.43291773,44130.0,44127.0,0.10068955]
[1644275385337,0.323673,44129.0,44127.0,0.10068955]
[1644275385540,0.380356,44128.0,44127.0,0.10068955]
[1644275385940,0.430356,44128.0,44127.0,0.1]
[1644275386589,0.380356,44128.0,44127.0,0.1]
[1644275386790,0.430356,44128.0,44127.0,0.1]
[1644275387389,0.70543664,44128.0,44127.0,0.1]
[1644275388791,0.70543664,44128.0,44127.0,0.15]
[1644275389392,0.430356,44128.0,44127.0,0.15]
[1644275389692,0.430356,44128.0,44127.0,0.1]
[1644275389945,0.4328907,44128.0,44127.0,0.1]
[1644275390343,0.5328907,44128.0,44127.0,0.1]
[1644275391043,0.170083,44126.0,44125.0,0.00069433]
[1644275391242,0.17846333,44126.0,44125.0,0.00069433]
[1644275391843,0.17846333,44126.0,44122.0,0.00023295]
[1644275392044,0.323673,44124.0,44123.0,0.00069435]
[1644275392250,0.523673,44124.0,44104.0,0.05]
[1644275392447,0.523673,44124.0,44101.0,0.02]
[1644275392448,0.14930836,44119.0,44101.0,0.02]
[1644275392652,0.14930836,44113.0,44101.0,0.02]
[1644275392844,0.32376,44111.0,44101.0,0.02]
[1644275393245,0.11342512,44110.0,44101.0,0.02]
[1644275393447,0.047224,44107.0,44103.0,0.05]
[1644275395298,0.047224,44107.0,44101.0,0.02]
[1644275395299,0.103934,44107.0,44106.0,0.05]
[1644275395498,0.047224,44107.0,44106.0,0.05]
[1644275395899,0.047224,44107.0,44101.0,0.02]
[1644275396094,0.3,44114.0,44101.0,0.02]
[1644275396294,0.32376,44113.0,44101.0,0.02]
[1644275396691,0.056708,44108.0,44101.0,0.02]
[1644275396894,0.056708,44108.0,44105.0,0.00069186]
[1644275396895,0.380461,44107.0,44105.0,0.00069186]
[1644275397545,0.23303294,44107.0,44105.0,0.00069186]
[1644275397955,0.23303294,44107.0,44103.0,0.05]
[1644275398249,0.23303294,44107.0,44106.0,0.05]
[1644275398446,0.33973394,44107.0,44106.0,0.05]
[1644275399248,0.33973394,44107.0,44104.0,0.0007132]
[1644275399549,0.160637,44106.0,44104.0,0.0007132]
[1644275400446,0.160637,44106.0,44103.0,0.00071322]
[1644275401497,0.160637,44106.0,44102.0,0.05]
[1644275401702,0.28732162,44105.0,44102.0,0.00068831]
[1644275401895,0.323832,44104.0,44102.0,0.00068831]
[1644275402094,0.36598266,44103.0,44102.0,0.00068831]
[1644275402296,0.69615566,44103.0,44102.0,0.05068831]
[1644275402496,0.69615566,44103.0,44102.0,0.00068831]
[1644275402694,0.69615566,44103.0,44101.0,0.02]
[1644275402897,0.60414245,44102.0,44101.0,0.02]
[1644275404097,0.65414245,44102.0,44101.0,0.02]
[1644275404599,0.60414245,44102.0,44101.0,0.02]
[1644275405047,0.60414245,44102.0,44101.0,0.07]
[1644275405852,0.60414245,44102.0,44101.0,0.02]
[1644275406255,0.45,44101.0,44092.0,0.05]
[1644275406446,0.056732,44097.0,44090.0,0.05]
[1644275406651,0.056732,44097.0,44086.0,0.1]
[1644275406652,0.39363561,44096.0,44093.0,0.00285231]
[1644275406851,0.02254,44094.0,44086.0,0.0989]
[1644275407050,0.550818,44093.0,44086.0,0.0989]
[1644275407250,0.73893769,44093.0,44086.0,0.0989]
[1644275407448,0.280173,44091.0,44086.0,0.0989]
[1644275407649,0.22698381,44090.0,44086.0,0.0989]
[1644275407946,0.430579,44089.0,44086.0,0.0989]
[1644275408147,0.279889,44088.0,44086.0,0.0989]
[1644275408352,0.329889,44088.0,44086.0,0.0989]
[1644275408548,0.323832,44087.0,44086.0,0.0989]
[1644275408795,0.423832,44087.0,44086.0,0.0989]
[1644275408992,0.7205073,44087.0,44086.0,0.0989]
[1644275409594,0.8907373,44087.0,44086.0,0.0989]
[1644275412299,0.8907373,44087.0,44081.0,0.0189]
[1644275412300,0.056748,44085.0,44081.0,0.0189]
[1644275412554,0.056748,44085.0,44080.0,0.0011]
[1644275412555,0.45,44083.0,44080.0,0.0011]
[1644275412751,0.21028581,44082.0,44078.0,0.00203535]
[1644275412955,0.21028581,44082.0,44061.0,0.00211985]
[1644275412956,0.279889,44080.0,44061.0,0.00211985]
[1644275413152,0.00163911,44075.0,44061.0,0.00211985]
[1644275413350,0.2271085,44073.0,44061.0,0.00211985]
[1644275413554,0.2271085,44073.0,44050.0,0.0003546]
[1644275413555,0.04,44062.0,44050.0,0.0003546]
[1644275413752,0.05677983,44061.0,44050.0,0.0003546]
[1644275413952,0.04,44056.0,44050.0,0.0003546]
[1644275414556,0.663909,44056.0,44050.0,0.0003546]
[1644275414754,0.563588,44055.0,44050.0,0.0003546]
[1644275414953,0.563588,44055.0,44042.0,0.05875431]
[1644275414954,0.04,44053.0,44042.0,0.05875431]
[1644275415154,0.82706381,44052.0,44047.0,0.00202914]
[1644275415454,0.04,44043.0,44042.0,0.05875431]
[1644275415654,0.363909,44043.0,44042.0,0.05875431]
[1644275415856,0.323909,44043.0,44042.0,0.05875431]
[1644275416201,0.363909,44043.0,44042.0,0.05875431]
[1644275416797,0.363909,44043.0,44042.0,0.35875431]
[1644275416996,0.01932972,44059.0,44043.0,0.45]
[1644275417194,0.01812893,44046.0,44043.0,0.45]
[1644275417392,0.01812893,44046.0,44042.0,0.40875431]
[1644275417393,0.01812893,44046.0,44044.0,0.323909]
[1644275417595,0.01812893,44046.0,44042.0,0.05875431]
[1644275419293,0.01926766,44049.0,44042.0,0.05875431]
[1644275419693,0.0199862,44049.0,44042.0,0.05947297]
[1644275420538,0.0031245,44043.0,44042.0,0.05947297]
[1644275420738,0.0031245,44043.0,44042.0,0.05875431]
[1644275421342,0.056773,44058.0,44043.0,0.4]
[1644275421540,0.056773,44058.0,44050.0,0.02073022]
[1644275421740,0.323909,44057.0,44050.0,0.02073022]
[1644275421939,0.373909,44057.0,44043.0,0.1]
[1644275422140,0.05,44057.0,44042.0,0.05875431]
[1644275422344,0.113558,44059.0,44042.0,0.05875431]
[1644275422345,0.056781,44053.0,44042.0,0.05875431]
[1644275423342,0.056781,44053.0,44043.0,0.3]
[1644275423343,0.00017739,44051.0,44043.0,0.3]
[1644275423791,0.00017739,44051.0,44044.0,0.323909]
[1644275424393,0.323909,44060.0,44042.0,0.05875431]
[1644275424589,0.00058951,44051.0,44045.0,0.00067977]
[1644275425492,0.00058951,44051.0,44042.0,0.05875431]
[1644275425493,0.056777,44056.0,44042.0,0.05875431]
[1644275425693,0.00017686,44051.0,44042.0,0.05875431]
[1644275426691,0.00327574,44057.0,44042.0,0.05875431]
[1644275426892,0.0001898,44051.0,44043.0,0.3]
[1644275427095,0.0001898,44051.0,44042.0,0.05875431]
[1644275427292,0.0001898,44051.0,44043.0,0.3079535]
[1644275427539,0.0001898,44051.0,44042.0,0.07970735]
[1644275427738,0.0001898,44051.0,44043.0,0.28477828]
[1644275427939,0.00327574,44057.0,44043.0,0.28477828]
[1644275427940,0.00327574,44057.0,44043.0,0.28500809]
[1644275428140,0.0001898,44051.0,44043.0,0.28500809]
[1644275429044,0.00327574,44057.0,44043.0,0.28500809]
[1644275429239,0.00327574,44057.0,44045.0,0.00069084]
[1644275429441,0.00063267,44051.0,44045.0,0.00069084]
[1644275430241,0.00195352,44050.0,44044.0,0.00022981]
[1644275430442,0.00195352,44050.0,44046.0,0.00070371]
[1644275430740,0.00067564,44051.0,44046.0,0.00070371]
[1644275431705,0.00067565,44051.0,44046.0,0.00070372]
[1644275432098,0.00067565,44051.0,44046.0,0.00093353]
[1644275432299,0.02163028,44056.0,44051.0,0.00045082]
[1644275432499,0.323909,44055.0,44047.0,0.40022981]
[1644275432701,0.02163028,44056.0,44047.0,0.4]
[1644275432900,0.02163028,44056.0,44047.0,0.40022981]
[1644275433101,0.02163028,44056.0,44047.0,0.4]
[1644275433502,0.02163028,44056.0,44044.0,0.00022981]
[1644275433701,0.02163028,44056.0,44043.0,0.40022981]
[1644275433903,0.213548,44059.0,44043.0,0.40022981]
[1644275434103,0.213548,44059.0,44048.0,0.0006793]
[1644275434315,0.00059265,44053.0,44048.0,0.0006793]
[1644275434937,0.0024419,44050.0,44048.0,0.0006793]
[1644275435138,0.0024419,44050.0,44044.0,0.00022981]
[1644275435441,0.0024419,44050.0,44048.0,0.0006793]
[1644275436339,0.0024419,44050.0,44044.0,0.00022981]
[1644275436541,0.0024419,44050.0,44047.0,0.00067931]
[1644275437543,0.0024419,44050.0,44044.0,0.00022981]
[1644275437743,0.0024419,44050.0,44046.0,0.00068377]
[1644275438788,0.0024419,44050.0,44044.0,0.00022981]
[1644275438989,0.0024419,44050.0,44046.0,0.00068377]
[1644275439988,0.05921477,44053.0,44044.0,0.00022981]
[1644275440189,0.05982224,44053.0,44046.0,0.00068377]
[1644275440388,0.05738181,44053.0,44046.0,0.00068377]
[1644275441091,0.05677434,44053.0,44044.0,0.00022981]
[1644275441291,0.0573792,44053.0,44047.0,0.00068297]
[1644275442442,0.05677434,44053.0,44044.0,0.00022981]
[1644275442646,0.0573792,44053.0,44048.0,0.00068296]